bitfinex-derivatives/quotes_ETHF0:USTF0_20220108
["timestamp","ask_amount","ask_price","bid_price","bid_amount"]
[1641670880558,0.08262,3026.9,3025.7,1.5]
[1641670880757,1.65200785,3027.2,3025.6,0.08261]
[1641670881357,0.83112525,3026.9,3026.4,1.5]
[1641670881555,2.525e-05,3026.9,3026.8,1.5]
[1641670881755,1.66272111,3027.6,3026.8,1.5]
[1641670881956,1.66272111,3027.6,3026.9,1.5]
[1641670882157,2.00479,3027.4,3027.0,2.31312407]
[1641670882557,1.66272111,3027.6,3027.0,2.31312407]
[1641670882956,0.330231,3027.5,3027.0,0.66197]
[1641670883156,0.330231,3027.5,3026.6,2.00479]
[1641670884158,0.330231,3027.5,3027.0,2.00479]
[1641670884356,0.992201,3027.5,3027.0,2.00479]
[1641670884556,1.5,3027.3,3026.6,2.00479]
[1641670884756,0.992201,3027.5,3025.5,0.08258]
[1641670884757,1.6521334,3027.1,3025.5,0.08258]
[1641670884960,1.7347134,3027.4,3025.3,0.0826]
[1641670884961,14.24,3027.3,3025.3,0.0826]
[1641670885257,1.5,3026.9,3024.8,0.0826]
[1641670885457,0.08262,3026.8,3024.8,0.0826]
[1641670885657,1.65234906,3026.6,3025.5,1.5]
[1641670885860,1.65212248,3027.0,3025.3,1.65212248]
[1641670886257,1.65212248,3027.0,3026.4,2.00479]
[1641670886457,1.98235348,3027.0,3026.5,0.66197]
[1641670886657,2.64432348,3027.0,3026.5,0.66197]
[1641670887059,2.64432348,3027.0,3026.4,2.00479]
[1641670887258,2.72690348,3027.0,3026.5,0.66197]
[1641670887560,0.08258,3027.6,3026.8,1.65127404]
[1641670887759,6.11736604,3028.1,3026.9,0.66197]
[1641670887961,0.70336604,3028.1,3026.9,0.66197]
[1641670888157,0.70336604,3028.1,3027.5,2.00479]
[1641670888359,0.70336604,3028.1,3027.6,0.66197]
[1641670888958,3.66751111,3028.2,3027.6,0.66197]
[1641670889358,2.335021,3028.2,3027.6,0.66197]
[1641670890759,2.996991,3028.2,3027.6,0.66197]
[1641670890962,2.00479,3028.2,3027.5,1.05740637]
[1641670892558,0.66197,3028.1,3027.5,1.05740637]
[1641670893260,0.992201,3028.1,3027.5,1.05740637]
[1641670893459,0.66197,3028.1,3027.5,1.05740637]
[1641670893661,2.00479,3028.2,3027.5,1.05740637]
[1641670895062,2.00479,3028.2,3027.6,0.08255]
[1641670895264,2.00479,3028.2,3027.5,1.05740637]
[1641670895463,2.00479,3028.2,3027.6,0.08255]
[1641670895762,2.00479,3028.5,3028.0,1.5]
[1641670895963,1.65088694,3029.2,3028.0,1.5]
[1641670896163,2.00479,3029.2,3028.6,1.5]
[1641670896365,1.66272111,3029.4,3029.2,0.002]
[1641670896563,2.00479,3029.5,3029.2,0.002]
[1641670896564,1.66272111,3029.3,3029.2,0.002]
[1641670897564,2.0404863,3029.5,3029.2,0.002]
[1641670897965,2.72690902,3029.8,3029.2,0.002]
[1641670898164,0.66197,3029.8,3029.6,2.00479]
[1641670898864,0.992201,3029.8,3029.6,2.00479]
[1641670899066,0.66197,3029.8,3029.6,2.00479]
[1641670899468,0.65997,3029.8,3029.3,2.00479]
[1641670899867,0.45007466,3029.7,3029.3,2.00679]
[1641670900167,2.45486466,3029.7,3029.3,2.00679]
[1641670900769,1.5,3029.5,3028.7,2.00479]
[1641670900968,1.5,3029.2,3028.7,2.00479]
[1641670901169,1.5,3029.4,3028.7,2.00479]
[1641670901370,0.08253,3029.3,3028.7,2.00479]
[1641670901570,1.5,3029.2,3028.7,2.00479]
[1641670901768,1.5,3029.2,3027.7,35.3998]
[1641670901769,0.66197,3029.1,3027.7,35.3998]
[1641670901969,0.66197,3029.1,3027.3,0.08255]
[1641670902171,2.00479,3028.5,3027.8,2.00479]
[1641670902370,2.00479,3028.5,3027.9,0.002]
[1641670902770,2.00479,3028.5,3028.0,0.640787]
[1641670902974,2.00479,3028.5,3028.1,0.002]
[1641670903172,2.48414825,3029.3,3028.1,0.002]
[1641670903173,0.83327221,3029.3,3028.4,1.5]
[1641670903372,0.83327221,3029.3,3028.7,1.5]
[1641670903572,0.83327221,3029.3,3028.8,0.002]
[1641670903771,0.83327221,3029.3,3028.8,5.282271]
[1641670903971,0.83327221,3029.3,3028.9,0.08453]
[1641670904172,0.83327221,3029.3,3029.2,2.00479]
[1641670904672,0.83327221,3029.3,3029.2,2.00679]
[1641670904873,0.83327221,3029.3,3029.2,2.647577]
[1641670905475,2.00479,3029.9,3029.2,2.647577]
[1641670905872,2.00479,3029.9,3029.3,1.5]
[1641670906073,0.83327221,3030.2,3029.8,1.5]
[1641670906272,0.83327221,3030.2,3030.1,2.00479]
[1641670906672,0.83327221,3030.2,3030.1,3.65627726]
[1641670906875,0.83327221,3030.9,3030.1,4.29706426]
[1641670907075,0.83327221,3030.9,3030.4,1.64931586]
[1641670907276,0.83327221,3030.9,3030.5,0.002]
[1641670907981,0.83327221,3030.9,3030.1,2.645577]
[1641670908477,0.66197,3030.8,3030.2,0.002]
[1641670909079,2.335021,3031.0,3030.2,0.002]
[1641670909477,0.66197,3030.9,3030.2,0.002]
[1641670909878,2.00479,3031.0,3030.2,0.002]
[1641670910087,2.00479,3031.0,3030.2,0.08448]
[1641670910484,2.00479,3031.0,3030.3,1.64937843]
[1641670910978,2.00479,3031.0,3030.5,1.5]
[1641670911181,0.83327221,3031.6,3030.9,3.14905476]
[1641670911379,1.66214401,3032.3,3031.5,1.5]
[1641670911581,34.14525476,3032.9,3031.6,1.58244]
[1641670911779,1.66214401,3033.0,3031.9,1.5]
[1641670911982,1.66214401,3033.0,3032.0,1.64846758]
[1641670912179,1.66214401,3033.0,3032.9,2.00479]
[1641670913182,2.32411401,3033.0,3032.9,2.00479]
[1641670913380,0.66197,3033.0,3032.9,2.00479]
[1641670914482,0.66197,3033.0,3032.3,2.00479]
[1641670915484,1.5,3032.7,3032.3,2.00479]
[1641670915684,0.08244,3033.2,3032.3,2.00479]
[1641670916482,5.65828132,3033.3,3032.3,2.00479]
[1641670916682,4.00958,3033.3,3032.3,2.00479]
[1641670917483,7.15823239,3033.3,3032.3,2.00479]
[1641670917685,5.65823239,3033.3,3032.3,2.00479]
[1641670918087,14.24,3033.2,3032.3,2.00479]
[1641670918390,5.65823239,3033.3,3032.3,4.00958]
[1641670920184,14.24,3033.2,3032.3,4.00958]
[1641670920384,5.65823239,3033.3,3032.3,4.00958]
[1641670921987,1.73090302,3033.7,3032.3,5.50958]
[1641670922187,1.64847302,3033.7,3032.3,5.50958]
[1641670922386,2.00479,3034.0,3033.3,2.00479]
[1641670922588,0.992201,3033.9,3033.3,2.00479]
[1641670923390,17.38851106,3033.6,3033.3,2.00479]
[1641670923592,0.66197,3033.5,3033.3,2.00479]
[1641670924393,0.66197,3033.5,3033.0,2.00479]
[1641670925492,1.5,3033.1,3032.1,0.0824]
[1641670925692,1.6490466,3032.6,3031.2,32.63863]
[1641670925892,1.6490466,3032.6,3031.1,0.08244]
[1641670926093,1.6490466,3032.6,3031.0,0.08244]
[1641670926298,2.00479,3032.4,3031.7,2.00479]
[1641670926494,1.5,3032.1,3031.4,2.00479]
[1641670926697,1.5,3032.1,3030.7,0.08244]
[1641670926898,0.330231,3032.3,3030.0,0.08247]
[1641670927102,0.330231,3032.3,3031.0,1.5]
[1641670927299,0.330231,3032.3,3031.1,0.08246]
[1641670927496,2.00479,3032.4,3031.1,0.08246]
[1641670927696,2.00479,3032.4,3031.1,14.32246]
[1641670927897,2.00479,3032.4,3031.6,1.64868773]
[1641670928097,2.00479,3032.4,3031.7,0.640787]
[1641670928299,2.00479,3032.4,3032.0,2.00479]
[1641670929498,2.335021,3032.4,3032.0,2.00479]
[1641670929999,2.00479,3032.4,3032.0,2.00479]
[1641670931001,2.00479,3032.7,3032.0,2.00479]
[1641670931211,2.00479,3032.7,3032.0,4.4315603]
[1641670931402,14.24,3033.7,3032.0,2.78309]
[1641670931603,14.24,3033.7,3032.1,0.08243]
[1641670932402,2.00479,3033.2,3032.5,2.00479]
[1641670932602,0.992201,3033.1,3032.5,2.00479]
[1641670932803,0.992201,3033.1,3032.5,2.645577]
[1641670935411,2.00479,3033.2,3032.5,2.645577]
[1641670935609,2.00479,3033.5,3032.5,2.645577]
[1641670936008,1.5,3033.0,3032.6,0.08241]
[1641670936208,0.992201,3032.9,3032.0,2.00479]
[1641670936408,2.00479,3032.8,3032.0,2.00479]
[1641670936610,0.66197,3032.7,3032.0,2.00479]
[1641670937011,1.5,3032.4,3031.3,0.08244]
[1641670937212,1.5,3032.0,3030.7,35.6916581]
[1641670937411,1.5,3032.0,3030.7,1.6491581]
[1641670937612,2.3489,3032.0,3030.7,1.6491581]
[1641670938210,0.8489,3032.0,3030.7,1.6491581]
[1641670938413,2.00479,3031.7,3031.0,2.00479]
[1641670938611,0.992201,3031.6,3031.1,0.640787]
[1641670939011,0.992201,3031.6,3031.0,2.00479]
[1641670940411,1.5,3031.4,3029.8,35.4289]
[1641670940611,1.5,3031.4,3029.9,0.08248]
[1641670940913,1.5,3031.1,3029.6,36.14480672]
[1641670941111,1.5,3031.1,3029.6,1.64972672]
[1641670942111,14.24,3031.3,3029.6,1.64972672]
[1641670942112,3.14972672,3031.4,3029.6,1.64972672]
[1641670942312,2.00479,3030.8,3030.1,2.00479]
[1641670942513,0.992201,3030.7,3030.1,2.00479]
[1641670943812,16.732201,3030.7,3030.1,2.00479]
[1641670944017,2.492201,3030.7,3030.1,2.00479]
[1641670944217,16.732201,3030.7,3030.1,2.00479]
[1641670944514,16.732201,3030.7,3030.1,9e-05]
[1641670944715,0.08248,3030.6,3028.5,0.57308]
[1641670944917,1.5,3030.0,3028.5,0.57308]
[1641670945216,0.08251,3029.9,3028.5,2.14094748]
[1641670945518,1.73287748,3030.2,3028.6,1.5]
[1641670945716,1.65021676,3030.5,3028.7,1.73272676]
[1641670945917,1.65021676,3030.5,3029.2,1.5]
[1641670946117,1.65021676,3030.5,3028.8,5.281225]
[1641670946319,2.00479,3030.0,3029.3,7.285579]
[1641670946521,2.00479,3030.0,3029.4,0.640787]
[1641670947323,2.00479,3030.0,3029.5,1.64983015]
[1641670949024,0.08251,3031.1,3029.9,3.14952807]
[1641670949325,0.08251,3032.0,3030.5,1.64923698]
[1641670949523,14.24,3032.2,3030.5,1.64923698]
[1641670949725,0.82631787,3031.5,3030.6,5.278611]
[1641670949923,0.82631787,3031.5,3030.6,5.361081]
[1641670950324,0.82631787,3031.5,3031.0,2.00479]
[1641670950525,0.66197,3031.4,3031.0,2.645577]
[1641670951226,0.66197,3031.4,3031.0,2.00479]
[1641670951429,0.66197,3031.4,3030.7,2.00479]
[1641670951627,0.66197,3031.4,3029.6,0.08247]
[1641670952027,0.66197,3031.4,3030.2,1.64944917]
[1641670952428,2.00479,3030.8,3030.2,1.64944917]
[1641670952628,0.66197,3030.7,3030.2,0.640787]
[1641670953230,0.992201,3030.7,3030.2,0.640787]
[1641670954230,0.992201,3030.7,3030.1,2.00479]
[1641670955333,1.5,3030.6,3030.1,2.00479]
[1641670955533,0.66197,3030.5,3030.1,2.00479]
[1641670956235,0.66197,3030.5,3029.1,67.9]
[1641670956434,2.00479,3029.9,3029.2,2.00479]
[1641670956636,2.00479,3029.9,3029.3,0.640787]
[1641670956833,0.66197,3029.8,3029.3,14.880787]
[1641670957035,2.00479,3030.8,3029.3,14.880787]
[1641670957233,2.00479,3030.8,3029.4,0.0825]
[1641670957834,2.00479,3030.8,3029.7,1.64967229]
[1641670958033,2.00479,3030.8,3029.8,0.0825]
[1641670958436,4.00958,3030.8,3029.8,2.08729]
[1641670958834,4.00958,3030.8,3029.7,1.64967229]
[1641670958835,5.50958,3030.8,3029.7,1.64967229]
[1641670959034,5.50958,3030.8,3028.8,0.0825]
[1641670959236,0.0825,3030.7,3028.4,1.10823274]
[1641670959435,6.49942453,3030.8,3028.6,0.0825]
[1641670959638,0.0825,3030.7,3028.6,0.0825]
[1641670960341,0.0825,3030.7,3028.6,14.3225]
[1641670960536,2.00479,3030.2,3029.1,2.00479]
[1641670960738,2.00479,3030.2,3029.2,2.0873]
[1641670962839,2.00479,3030.2,3029.2,3.50479]
[1641670963038,2.00479,3030.2,3029.4,1.5]
[1641670963238,0.992201,3030.1,3029.5,0.640787]
[1641670963440,0.992201,3030.1,3029.3,0.08251]
[1641670963640,0.992201,3030.1,3029.2,3.50479]
[1641670963841,0.992201,3030.1,3029.2,2.00479]
[1641670964040,1.5,3030.0,3028.2,65.11671]
[1641670964241,14.24,3029.9,3028.5,2.14094748]
[1641670964443,2.00479,3029.5,3028.8,2.00479]
[1641670964641,14.90197,3029.4,3028.8,2.00479]
[1641670964844,14.90197,3029.4,3028.5,2.14094748]
[1641670964845,14.90197,3029.4,3028.5,0.4906]
[1641670965041,1.5,3029.0,3028.1,1.10823274]
[1641670965443,1.22506123,3028.9,3027.6,1.65083788]
[1641670965741,1.22506123,3028.9,3027.4,1.10823274]
[1641670966242,1.30761123,3028.9,3027.4,1.10823274]
[1641670966441,2.00479,3028.0,3027.4,1.10823274]
[1641670966642,0.66197,3027.9,3027.4,1.10423274]
[1641670967445,0.66197,3027.9,3027.0,2.00479]
[1641670967841,0.66197,3027.9,3026.6,1.10423274]
[1641670968443,2.00479,3027.3,3026.6,3.10902274]
[1641670968643,0.66197,3027.2,3026.8,1.65125223]
[1641670968841,0.66197,3027.2,3026.7,1.129487]
[1641670969043,1.33207,3027.2,3026.8,1.65125223]
[1641670969841,1.33207,3027.2,3026.7,1.129487]
[1641670970045,0.6701,3027.2,3026.7,1.129487]
[1641670970243,0.6701,3027.2,3026.7,1.212067]
[1641670970442,2.00479,3028.0,3027.1,3.65588955]
[1641670970643,2.00479,3028.0,3027.2,1.5]
[1641670970842,2.00479,3028.0,3027.2,6.784801]
[1641670971249,2.00479,3028.0,3027.2,5.284801]
[1641670971844,2.00479,3028.0,3027.4,1.65094145]
[1641670972045,2.00479,3028.0,3027.5,0.640787]
[1641670972444,2.00479,3028.0,3027.5,2.645577]
[1641670972847,0.330231,3027.9,3027.5,2.645577]
[1641670973047,0.330231,3027.9,3027.5,2.00479]
[1641670973247,2.66676,3028.0,3027.5,2.00479]
[1641670974050,2.66676,3028.0,3027.6,0.640787]
[1641670974250,2.00479,3028.0,3027.6,0.640787]
[1641670974450,0.08255,3028.8,3027.9,2.00479]
[1641670974650,2.00479,3029.0,3027.9,2.00479]
[1641670974852,2.00479,3029.0,3028.0,5.283405]
[1641670975252,2.00479,3029.0,3027.9,2.00479]
[1641670975452,16.24479,3029.0,3027.9,2.00479]
[1641670975750,16.24479,3029.0,3027.8,1.65073705]
[1641670976153,17.74479,3029.0,3027.8,1.65073705]
[1641670976350,0.99047495,3028.9,3027.8,1.65073705]
[1641670976550,2.00479,3027.9,3027.8,1.65073705]
[1641670976751,2.996991,3027.9,3027.8,1.65073705]
[1641670978152,2.335021,3027.9,3027.8,1.65073705]
[1641670978351,2.00479,3027.9,3027.8,1.65073705]
[1641670978752,0.08255,3029.1,3027.8,1.65073705]
[1641670978954,0.08255,3029.4,3027.6,0.640787]
[1641670979155,0.08255,3029.6,3027.6,0.640787]
[1641670979354,0.82631787,3029.7,3027.7,0.08254]
[1641670979955,14.24,3029.6,3028.0,1.65064714]
[1641670980156,1.5,3029.5,3028.0,1.65064714]
[1641670980556,16.24479,3028.4,3028.0,1.65064714]
[1641670980755,1.5,3028.2,3026.8,34.164]
[1641670980957,1.65145948,3028.2,3026.5,37.05169948]
[1641670981156,15.82257,3028.1,3026.5,1.65145948]
[1641670981356,14.32257,3028.1,3026.5,1.65145948]
[1641670981658,15.04297,3028.1,3026.5,1.65145948]
[1641670981956,0.80297,3028.1,3026.5,1.65145948]
[1641670982156,0.7204,3028.1,3027.0,1.65118134]
[1641670982356,0.7204,3028.1,3026.6,1.58257]
[1641670982560,2.00479,3028.4,3027.1,4.00958]
[1641670982964,14.32255,3028.3,3027.1,4.00958]
[1641670983164,14.24,3028.3,3027.1,4.00958]
[1641670983362,0.08257,3028.2,3027.1,4.00958]
[1641670983562,14.32257,3028.3,3027.1,4.00958]
[1641670983765,14.24,3028.3,3027.1,4.00958]
[1641670984564,2.00479,3027.6,3027.1,2.00479]
[1641670984765,0.992201,3027.5,3027.1,2.00479]
[1641670984970,0.992201,3027.5,3026.8,1.65130403]
[1641670985668,1.676601,3027.5,3026.2,1.65159858]
[1641670986066,1.676601,3027.5,3025.6,35.9225]
[1641670986266,14.24,3027.4,3025.6,35.9225]
[1641670986665,2.00479,3026.3,3025.6,2.00479]
[1641670986867,0.992201,3026.2,3025.7,0.640787]
[1641670987466,0.66197,3026.2,3025.7,0.640787]
[1641670987667,0.66197,3026.2,3025.9,1.65176499]
[1641670988967,0.992201,3026.2,3025.9,1.65176499]
[1641670989567,15.232201,3026.2,3025.4,1.65190142]
[1641670989969,0.992201,3026.2,3025.4,1.65190142]
[1641670990171,0.992201,3026.2,3025.5,0.640787]
[1641670990572,0.992201,3026.2,3025.5,2.645577]
[1641670991472,0.992201,3026.2,3025.5,2.00479]
[1641670994273,0.992201,3026.2,3025.6,0.640787]
[1641670994674,0.992201,3026.2,3025.5,2.00479]
[1641670996476,0.992201,3026.2,3025.6,0.640787]
[1641670996679,2.00479,3026.3,3025.8,1.5]
[1641670996880,2.00479,3026.6,3025.8,1.5]
[1641670996881,2.00479,3026.6,3025.9,1.65174317]
[1641670997079,2.00479,3026.6,3025.9,6.93916317]
[1641670997379,2.00479,3026.6,3025.9,19.52742]
[1641670997579,0.08261,3027.6,3025.9,19.52742]
[1641670997881,33.8054,3027.7,3026.0,0.08258]
[1641670998082,33.8054,3027.7,3026.4,1.5]
[1641670998280,14.24,3028.0,3026.4,1.5]
[1641670998779,2.00479,3027.1,3026.4,3.50479]
[1641670998979,0.330231,3027.0,3026.6,1.65141039]
[1641670999179,0.992201,3027.0,3026.6,1.65141039]
[1641670999379,0.992201,3027.0,3026.4,3.50479]
[1641671001882,0.992201,3027.0,3026.4,3.15150857]
[1641671002683,2.00479,3026.7,3026.4,3.15150857]
[1641671002881,2.66676,3026.7,3026.4,3.15150857]
[1641671003083,14.24,3026.6,3025.9,2.00479]
[1641671003384,0.66197,3026.5,3025.8,1.65180319]
[1641671003783,0.66197,3026.5,3025.4,1.65204879]
[1641671004593,2.00479,3025.8,3025.4,1.65204879]
[1641671004783,0.66197,3025.7,3025.4,1.65204879]
[1641671005384,0.08262,3026.6,3025.6,1.5]
[1641671005584,2.00479,3026.7,3025.8,1.5]
[1641671005785,2.00479,3026.7,3025.7,5.287333]
[1641671005988,2.00479,3026.7,3025.6,1.65193144]
[1641671006585,2.00479,3026.3,3025.6,3.65672144]
[1641671006985,2.00479,3026.3,3025.6,2.00479]
[1641671007185,0.330231,3026.2,3025.6,2.00479]
[1641671007886,0.330231,3026.2,3025.7,1.5]
[1641671008087,0.330231,3026.2,3025.6,2.00479]
[1641671008287,0.330231,3026.2,3025.7,1.5]
[1641671008489,0.66197,3026.1,3025.7,1.5]
[1641671008687,1.28317,3026.1,3025.6,2.00479]
[1641671008888,1.28317,3026.1,3025.4,1.5]
[1641671009489,1.28317,3026.1,3025.5,1.65198329]
[1641671010692,2.00479,3025.6,3025.5,1.65198329]
[1641671010891,2.66676,3025.6,3025.5,1.65198329]
[1641671011391,2.66676,3025.6,3025.2,1.65214978]
[1641671011690,2.66676,3025.6,3025.1,2.00479]
[1641671011691,0.330231,3025.5,3025.1,2.00479]
[1641671011892,0.66197,3025.4,3025.1,2.00479]
[1641671018199,0.66197,3025.4,3025.1,2.645577]
[1641671018401,2.00479,3025.6,3025.3,3.15204879]
[1641671018698,2.08741,3027.1,3025.5,5.15644041]
[1641671018899,2.00479,3027.1,3026.1,1.5]
[1641671019098,2.00479,3027.1,3025.7,1.5]
[1641671019298,3.50479,3027.1,3025.8,0.0826]
[1641671019499,1.5,3026.7,3025.5,3.65644041]
[1641671020798,2.00479,3026.0,3025.5,3.65644041]
[1641671020998,0.991901,3025.9,3025.5,3.65644041]
[1641671021599,0.991901,3025.9,3025.5,2.00479]
[1641671022201,2.00479,3026.0,3025.5,2.00479]
[1641671022401,2.00479,3026.0,3025.5,3.65679512]
[1641671022600,2.00479,3026.0,3025.6,0.66197]
[1641671024108,2.00479,3026.0,3025.8,1.65179773]
[1641671024304,2.00479,3026.3,3025.8,1.65179773]
[1641671024508,14.24,3026.2,3025.5,2.00479]
[1641671024703,14.32262,3026.2,3025.5,2.00479]
[1641671024904,0.66167,3026.1,3025.5,2.00479]
[1641671025105,14.24,3026.0,3025.5,2.00479]
[1641671025304,0.66167,3025.9,3025.5,2.00479]
[1641671025704,0.330231,3025.8,3024.9,1.10877311]
[1641671026109,1.830231,3025.8,3024.9,1.10877311]
[1641671026406,0.330231,3025.8,3024.9,1.10877311]
[1641671026807,0.330231,3025.8,3024.6,1.65249924]
[1641671026808,2.00479,3025.2,3024.6,1.65249924]
[1641671027008,0.66167,3025.1,3024.6,1.65249924]
[1641671027610,0.66167,3025.1,3024.6,2.95525624]
[1641671027809,0.991901,3025.1,3024.6,2.95525624]
[1641671028211,0.991901,3025.1,3024.6,2.31446924]
[1641671029414,2.00479,3025.2,3024.6,2.31446924]
[1641671029713,2.00479,3025.2,3024.7,0.640787]
[1641671029913,2.00479,3025.2,3024.8,0.66197]
[1641671032319,2.00479,3025.2,3024.8,2.31436275]
[1641671034021,2.00479,3025.5,3024.8,2.31436275]
[1641671034224,33.4808,3026.2,3024.8,2.39700275]
[1641671034423,1.65239275,3026.5,3024.8,2.31436275]
[1641671034826,1.65239275,3026.5,3025.2,2.00479]
[1641671034827,2.00479,3025.9,3025.2,2.00479]
[1641671035024,0.991901,3025.8,3025.2,2.00479]
[1641671035324,0.991901,3025.8,3024.5,1.65251016]
[1641671035624,14.32264,3025.7,3024.5,1.65251016]
[1641671036225,14.32264,3025.7,3024.4,2.00479]
[1641671036424,14.24,3025.7,3024.4,2.00479]
[1641671036626,1.5,3025.3,3024.4,2.00479]
[1641671036826,14.24,3025.1,3024.4,2.00479]
[1641671037026,0.991901,3025.0,3024.4,2.00479]
[1641671039227,0.991901,3025.0,3024.0,1.65283246]
[1641671039428,0.991901,3025.0,3023.6,1.10877311]
[1641671039429,1.5,3024.7,3023.6,1.10877311]
[1641671039629,1.5,3024.4,3023.6,1.10877311]
[1641671039829,0.66167,3024.3,3023.6,1.10877311]
[1641671040029,0.330231,3024.2,3023.6,1.10877311]
[1641671040429,0.66167,3024.1,3023.6,1.10877311]
[1641671040830,16.24479,3023.7,3023.6,1.10877311]
[1641671041030,16.90646,3023.7,3023.3,0.5278673]
[1641671041830,2.66646,3023.7,3023.3,0.5278673]
[1641671042231,16.90646,3023.7,3023.3,0.5278673]
[1641671042931,17.62386,3023.7,3023.3,0.5278673]
[1641671043132,17.62386,3023.7,3023.2,1.10877311]
[1641671043332,17.62386,3023.7,3023.0,2.00479]
[1641671044531,14.24,3023.5,3023.1,0.52792516]
[1641671044733,2.491901,3023.4,3023.0,2.00479]
[1641671044931,2.49230698,3023.3,3022.9,1.10877311]
[1641671045132,1.5,3023.0,3022.6,2.08412956]
[1641671045531,14.24,3023.2,3022.6,2.08412956]
[1641671045732,0.66167,3023.1,3022.6,2.08412956]
[1641671046233,0.412921,3023.4,3022.6,3.38688656]
[1641671046432,0.412921,3023.4,3022.6,2.68298635]
[1641671046433,0.330231,3023.4,3022.6,2.68298635]
[1641671046732,2.00479,3023.0,3022.6,1.302757]
[1641671047133,2.00479,3023.0,3022.6,0.640787]
[1641671047933,2.00479,3023.0,3022.7,1.65351571]
[1641671048232,0.7174,3023.7,3022.9,1.65327514]
[1641671048433,0.7174,3023.7,3022.9,1.73596514]
[1641671048833,0.7174,3023.7,3023.6,2.00479]
[1641671049034,0.7174,3023.7,3023.6,2.645577]
[1641671049233,0.7174,3023.7,3023.6,3.307547]
[1641671049836,0.7174,3023.7,3023.6,4.96057344]
[1641671049837,0.0001,3023.7,3023.6,4.96057344]
[1641671050035,2.0404863,3024.8,3023.6,6.54325344]
[1641671050236,2.0404863,3024.8,3023.8,1.5]
[1641671050436,2.0404863,3024.8,3023.9,0.74462]
[1641671050637,2.0404863,3024.8,3023.9,6.035275]
[1641671050835,2.0404863,3024.8,3024.4,2.00479]
[1641671051035,2.0404863,3024.8,3024.5,0.66197]
[1641671051237,0.330231,3024.7,3024.4,2.00479]
[1641671051737,0.330231,3024.7,3023.7,0.08265]
[1641671051738,0.66167,3024.5,3023.7,0.08265]
[1641671051936,0.66167,3024.5,3023.8,0.66197]
[1641671052737,2.00479,3024.4,3023.8,0.66197]
[1641671053036,0.66167,3024.3,3023.8,0.66197]
[1641671053237,2.00479,3024.4,3023.8,1.302757]
[1641671053536,0.08265,3025.0,3023.8,1.302757]
[1641671053736,1.5,3025.4,3023.9,0.08265]
[1641671053937,0.08265,3025.4,3024.1,1.5]
[1641671054136,0.08265,3025.4,3023.8,0.640787]
[1641671054137,1.66214401,3025.8,3024.7,1.65242278]
[1641671054737,2.00479,3025.8,3025.1,2.00479]
[1641671054939,2.00479,3025.8,3025.2,0.66197]
[1641671055137,0.330231,3025.8,3025.3,0.640787]
[1641671055337,1.66214401,3025.9,3025.4,0.66197]
[1641671055538,2.32381401,3025.9,3025.4,0.66197]
[1641671055937,1.66214401,3025.9,3025.4,0.66197]
[1641671056137,1.66214401,3025.9,3025.4,0.74459]
[1641671056437,2.32381401,3025.9,3025.4,0.66197]
[1641671056637,0.66167,3025.9,3025.4,0.66197]
[1641671057237,0.330231,3025.8,3025.3,0.640787]
[1641671057539,0.66167,3025.7,3025.3,0.640787]
[1641671057737,0.66167,3025.7,3025.3,1.302757]
[1641671057937,0.66167,3025.7,3025.3,0.66197]
[1641671059338,0.66167,3025.7,3025.1,3.65697526]
[1641671059541,0.66167,3025.7,3024.8,2.00479]
[1641671059740,1.5,3025.5,3024.8,2.00479]
[1641671059940,0.66167,3025.4,3024.8,2.00479]
[1641671060142,0.74431,3025.4,3024.8,2.00479]
[1641671060341,14.98431,3025.4,3024.8,2.00479]
[1641671060542,1.65307563,3025.2,3024.8,2.00479]
[1641671060943,15.231901,3025.1,3024.0,3.12195388]
[1641671061143,0.991901,3025.1,3024.0,3.12195388]
[1641671061743,0.991901,3025.1,3024.0,2.00479]
[1641671062144,15.231901,3025.1,3024.0,2.00479]
[1641671062543,1.5,3024.7,3024.0,2.00479]
[1641671062748,0.66167,3024.6,3024.0,2.00479]
[1641671062945,0.66167,3024.6,3024.1,0.640787]
[1641671063447,1.5,3024.2,3023.1,1.65330521]
[1641671063645,1.5,3023.9,3023.1,1.65330521]
[1641671063846,0.991901,3023.8,3023.1,1.65330521]
[1641671064648,0.991901,3023.8,3023.2,0.66197]
[1641671064849,2.00479,3023.6,3023.2,0.66197]
[1641671065050,1.5,3023.3,3023.0,1.11716388]
[1641671065251,1.5,3023.3,3022.6,1.66501852]
[1641671065448,1.5,3023.3,3022.4,1.11716388]
[1641671065850,1.5,3023.1,3022.4,1.11716388]
[1641671066049,0.08269,3023.4,3022.4,1.11716388]
[1641671066050,0.991901,3023.0,3022.4,1.11716388]
[1641671066349,1.5,3022.5,3022.4,6.388e-05]
[1641671066550,3.81628829,3022.5,3022.2,1.26342935]
[1641671066749,1.5,3022.3,3021.9,1.66501852]
[1641671066951,1.5,3022.3,3021.6,1.11792676]
[1641671066952,19.74958,3022.0,3021.6,1.11792676]
[1641671067150,0.66167,3021.9,3021.6,1.11792676]
[1641671067349,1.5,3021.8,3021.6,1.11792676]
[1641671067549,0.66167,3021.7,3021.6,1.11792676]
[1641671067948,0.991901,3021.7,3021.6,2.676e-05]
[1641671068149,0.991901,3021.7,3021.4,2.10155735]
[1641671068351,1.5,3021.5,3020.9,2.08055323]
[1641671068549,1.5,3021.2,3020.9,2.08055323]
[1641671068950,19.74958,3021.0,3020.0,0.70433995]
[1641671069149,1.5,3020.6,3020.0,0.70433995]
[1641671069549,0.66167,3020.5,3020.0,0.70433995]
[1641671069950,0.330231,3020.4,3020.0,0.70433995]
[1641671070249,0.66167,3020.3,3020.0,0.70433995]
[1641671070455,1.5,3020.2,3019.6,2.08055323]
[1641671070649,3.15611171,3019.7,3019.6,5.323e-05]